Cogmind - Beta 13 X1 @@@ ROGUE MODE // 2023.08.15 @ 17:40:04 Player: VR-DUX Result: Destroyed by AQ-6ZI(R) with Subdweller Shrapnel Launcher Performance ------------- Evolutions (0) 0 Regions Visited (3) 600 Robots Destroyed (33) 165 Value Destroyed (613) 613 Prototype IDs (0) 0 Alien Tech Used (0) 0 Bonus (0) 0 TOTAL SCORE: 1378 Bonus ------- None Cogmind --------- Core Integrity 0/250 Matter 252/300 Energy 200/200 System Corruption 1% Temperature Cool (0) Movement Treading (240) Ox1 Location -10/Subcaves Parts ------- > --- POWER (1) -------- Subdweller Power Source > --- PROPULSION (2) --- Light Treads Wheel > --- UTILITY (2) ------ Large Storage Unit Structural Scanner > --- WEAPON (2) ------- Assault Rifle > --- INVENTORY (15) --- Small Storage Unit Medium Storage Unit Large Storage Unit Weight Redist. System Propulsion Shielding Utility Shielding EM Pulse Gun Beam Cannon Subdweller Machine Gun Rocket Launcher Peak State ------------ > --- POWER ------------ Subdweller Power Source > --- PROPULSION ------- Light Treads Wheel > --- UTILITY ---------- Large Storage Unit Structural Scanner > --- WEAPON ----------- Assault Rifle Grenade Launcher > --- INVENTORY -------- Small Storage Unit Medium Storage Unit Large Storage Unit Weight Redist. System Propulsion Shielding Utility Shielding EM Pulse Gun Beam Cannon Subdweller Machine Gun Rocket Launcher [Rating: 9] Favorites ----------- Power Ion Engine Engine Ion Engine Propulsion Light Treads Treads Light Treads Leg Aluminum Leg Wheel Wheel Utility Structural Scanner Device Structural Scanner Storage Large Storage Unit Weapon EM Pulse Gun Energy Gun EM Pulse Gun Energy Cannon Beam Cannon Ballistic Gun Assault Rifle Launcher Grenade Launcher Special Weapon Mining Laser Build | -11 -10 -10 -10 ------- Run | Jun Mat Min Sub Slots Evolved . | . . . . Power . | . . . . Propulsion . | . . . . Utility . | . . . . Weapon . | . . . . Parts Attached 27 | 1 16 2 8 Power 4 | . 1 1 2 Engine 4 | . 1 1 2 Core . | . . . . Reactor . | . . . . Propulsion 4 | . 2 . 2 Treads 3 | . 2 . 1 Leg . | . . . . Wheel 1 | . . . 1 Hover . | . . . . Flight . | . . . . Utility 4 | 1 3 . . Device 3 | 1 2 . . Storage 1 | . 1 . . Processor . | . . . . Hackware . | . . . . Protection . | . . . . Artifact . | . . . . Weapon 15 | . 10 1 4 Energy Gun 3 | . 2 . 1 Energy Cannon 2 | . 2 . . Ballistic Gun 2 | . 1 . 1 Ballistic Cannon . | . . . . Launcher 6 | . 4 1 1 Special Weapon 2 | . 1 . 1 Impact Weapon . | . . . . Slashing Weapon . | . . . . Piercing Weapon . | . . . . Special Melee Weapon . | . . . . Unidentified Prototypes . | . . . . Parts Lost 7 | . . . 7 Power 2 | . . . 2 Propulsion 2 | . . . 2 Utility . | . . . . Weapon 3 | . . . 3 Highest Loss Streak 4 | . . . 4 To Critical Strikes . | . . . . Average Slot Usage (%) 98 | . 100 99 93 Engine 13 | . 14 13 11 Treads 25 | . 25 28 22 Device 14 | . 14 14 14 Storage 14 | . 14 14 14 Energy Gun 12 | . 13 14 7 Energy Cannon 1 | . 3 . . Ballistic Gun 2 | . 5 . 2 Launcher 9 | . 2 13 14 Special Weapon 1 | . 3 . 1 Naked Turns . | . . . . Heaviest Build 31 | 15 31 31 31 Greatest Support 40 | 20 40 40 40 Greatest Overweight (x) 7 | . . . 7 Average Overweight (x) . | . . . . Largest Inventory Capacity 15 | 8 15 15 15 Average Capacity 14 | 8 13 15 15 Most Carried 15 | 5 11 15 15 Average Carried 10 | 4 9 12 12 Final Capacity 15 | 8 15 15 15 Final Carried 15 | 4 10 15 10 Class Distribution -------------------- 100% | Mutant Dominant Class ---------------- Mutant | -10/Materials Mutant | -10/Mines Mutant | -10/Subcaves Resources | -11 -10 -10 -10 ----------- Run | Jun Mat Min Sub Matter Collected 1009 | 224 226 281 278 Remotely . | . . . . Salvage Created 643 | 148 230 45 220 Parts 68 | 9 34 6 19 Haulers Intercepted 1 | . 1 . . Recyclers Shooed 2 | 1 . 1 . Parts Field Recycled . | . . . . Retrieved Matter . | . . . . Parts Self-Destructed 10 | . . . 10 Prevented . | . . . . Kills | -11 -10 -10 -10 ------- Run | Jun Mat Min Sub Combat Hostiles Destroyed 24 | . 10 6 8 Guns 1 | . . . 1 AOE 23 | . 10 6 7 Classes Destroyed 12 | 2 7 1 2 Worker 2 | . 1 1 . Builder 2 | . 1 1 . Tunneler 2 | 2 . . . Hauler 1 | . 1 . . Recycler 2 | 1 1 . . Operator 1 | . 1 . . Watcher 3 | . 3 . . Swarmer 11 | . 9 2 . Grunt 1 | . 1 . . Sentry 1 | . . . 1 Subdweller 7 | . . . 7 Assembled 4 | . . 4 . Best Kill Streak 8 | 2 8 3 4 Combat Bots Only 5 | . 5 2 4 Max Kills in Single Turn 3 | 2 3 2 2 Gunslinging . | . . . . Exploded 3 | . 3 1 2 Melee . | . . . . Uniques/NPCs Destroyed . | . . . . Combat | -11 -10 -10 -10 -------- Run | Jun Mat Min Sub Damage Taken 1071 | . 141 266 664 Core 267 | . 10 26 231 Absorbed by Shields . | . . . . Regen/Repaired (Parts) 36 | . 36 . . Core Remaining (%) 100 | 100 . . . Volleys Fired 81 | 8 23 16 34 Largest 2 | 2 2 1 1 Hottest 100 | 60 60 40 100 Shots Fired 91 | 16 25 16 34 Gun 30 | 16 9 1 4 Cannon 1 | . 1 . . Launcher 56 | . 15 15 26 Special 4 | . . . 4 Kinetic 12 | 8 2 . 2 Thermal 5 | . 1 . 4 Explosive 56 | . 15 15 26 Electromagnetic 18 | 8 7 1 2 Robot Hit Streak 5 | 3 5 4 3 Robot Miss Streak 2 | 1 2 2 2 Penetration Max . | . . . . Secondary Targets . | . . . . Shots Hit Robots 40 | 10 10 7 13 Core Hits 59 | 4 21 14 20 Critical Kills 1 | 1 . . . Critical Parts Destroyed . | . . . . Critical Strikes 1 | 1 . . . Destroy 1 | 1 . . . Melee Attacks . | . . . . Impact . | . . . . Slashing . | . . . . Piercing . | . . . . Sneak Attacks . | . . . . Combat Hostiles . | . . . . Follow-up Attacks . | . . . . Damage Inflicted 2824 | 174 1136 598 916 Guns 327 | 174 130 . 23 Cannons . | . . . . Explosions 2476 | . 1006 577 893 Melee . | . . . . Ramming 21 | . . 21 . Kinetic 106 | 81 25 . . Thermal . | . . . . Explosive 2476 | . 1006 577 893 Electromagnetic 221 | 93 105 . 23 Impact . | . . . . Slashing . | . . . . Piercing . | . . . . Highest Corruption 1 | . 1 1 1 Average Corruption 1 | . 1 1 1 Corruption Purged . | . . . . Corruption Blocked . | . . . . Effects 22 | . . 13 9 Message Errors 6 | . . 3 3 Matter Fused 5 | . . 3 2 Energy Discharges 4 | . . 2 2 Parts Fused 1 | . . 1 . Data Loss (minor) 4 | . . 2 2 Alerts 2 | . . 2 . Overload Shots . | . . . . Overflow Damage 49 | . 47 . 2 Projectiles . | . . . . Explosions 49 | . 47 . 2 Melee . | . . . . Knockbacks . | . . . . Impact . | . . . . Kinetic . | . . . . Secondary . | . . . . Self-Inflicted Damage 230 | . 36 84 110 Shots 10 | . 1 2 7 Rammed 2 | . . 2 . Targets Rammed 3 | . . 3 . Kicked . | . . . . Crushed 1 | . . 1 . Highest Temperature 20 | 20 20 15 . Average Temperature 8 | 20 5 5 . Received Heat Transfer 228 | . 18 120 90 Siege Activations . | . . . . Robots Corrupted . | . . . . Combat Hostiles . | . . . . Parts Fried 1 | . 1 . . Impact Corruptions . | . . . . Robots Melted . | . . . . Combat Hostiles . | . . . . Parts Melted 1 | . . . 1 Heat Transferred . | . . . . Parts Sabotaged . | . . . . Parts Stolen . | . . . . Parts Stripped . | . . . . Power Chain Reactions . | . . . . Missiles Intercepted . | . . . . Alert | -11 -10 -10 -10 ------- Run | Jun Mat Min Sub Peak Influence 241 | 15 241 81 . Initial 51 | . 9 51 . Average 72 | 9 127 26 . Maximum Alert Level 1 | . 1 . . Low Security (%) 90 | 100 78 100 . Level 1 9 | . 21 . . Level 2 . | . . . . Level 3 . | . . . . Level 4 . | . . . . Level 5 . | . . . . High Security . | . . . . Max Security . | . . . . Squads Dispatched 1 | . 1 . . Investigation 1 | . 1 . . Extermination . | . . . . Reinforcement . | . . . . Assault . | . . . . Garrison . | . . . . Intercept . | . . . . Searches Triggered . | . . . . Construction Impeded . | . . . . Haulers Reinforced . | . . . . Active Scanning Responses . | . . . . Cargo Convoy Interrupts . | . . . . Stealth | -11 -10 -10 -10 --------- Run | Jun Mat Min Sub Distress Signals 2 | . 2 . . Communications Jammed . | . . . . Distress Signals . | . . . . Times Spotted 35 | . 16 9 10 Peak Tracking Total 7 | . 7 3 4 Tactical Retreats 1 | . . 1 . Traps | -11 -10 -10 -10 ------- Run | Jun Mat Min Sub Traps Triggered 2 | . 2 . . Indirectly . | . . . . Trap Hack Attempts . | . . . . Triggered . | . . . . Disarmed . | . . . . Reprogrammed . | . . . . Reused . | . . . . Traps Extracted . | . . . . Installed . | . . . . Triggered . | . . . . Machines | -11 -10 -10 -10 ---------- Run | Jun Mat Min Sub Machines Disabled 4 | . 3 1 . Max in Single Turn 1 | . 1 1 . Machines Repaired . | . . . . Machines Sabotaged . | . . . . Overloaded Fab Kills . | . . . . Hacking | -11 -10 -10 -10 --------- Run | Jun Mat Min Sub Machines Accessed 10 | . 10 . . Terminals 7 | . 7 . . Fabricators . | . . . . Repair Stations 1 | . 1 . . Recycling Units 2 | . 2 . . Scanalyzers . | . . . . Garrison Access . | . . . . Total Hacks 22 | . 22 . . Successful 7 | . 7 . . Failed 15 | . 15 . . Catastrophic 3 | . 3 . . Database Lockouts . | . . . . Manual 17 | . 17 . . Terminals 17 | . 17 . . Fabricators . | . . . . Repair Stations 2 | . 2 . . Recycling Units 3 | . 3 . . Scanalyzers . | . . . . Garrison Access . | . . . . Terminal Hacks 4 | . 4 . . Robot Analysis 4 | . 4 . . Fabricator Hacks . | . . . . Repair Station Hacks 2 | . 2 . . Scan Component 1 | . 1 . . Repair 1 | . 1 . . Recycling Unit Hacks 1 | . 1 . . Retrieve Components 1 | . 1 . . Scanalyzer . | . . . . Garrison Access Hacks . | . . . . Unauthorized Hacks . | . . . . Terminals . | . . . . Fabricators . | . . . . Repair Stations . | . . . . Recycling Units . | . . . . Scanalyzers . | . . . . Garrison Access . | . . . . Data Cores Recovered . | . . . . Used . | . . . . Hacking Detections 8 | . 8 . . Full Trace Events 2 | . 2 . . Feedback Events . | . . . . Feedback Blocked . | . . . . Robot Schematics Acquired . | . . . . Robots Built . | . . . . Authchips . | . . . . Time . | . . . . Total Robot Build Rating . | . . . . Part Schematics Acquired . | . . . . Parts Built . | . . . . Authchips . | . . . . Time . | . . . . Total Part Build Rating . | . . . . Parts Repaired 1 | . 1 . . Time 26 | . 26 . . Parts Recycled . | . . . . Recycled Matter . | . . . . Retrieved Matter . | . . . . Retrieved Components 1 | . 1 . . Parts Scanalyzed . | . . . . Part Schematics Acquired . | . . . . Parts Damaged . | . . . . Bothacking | -11 -10 -10 -10 ------------ Run | Jun Mat Min Sub Used RIF Installer . | . . . . Robots Hacked . | . . . . Non-combat . | . . . . Combat . | . . . . Robot Hacks Applied . | . . . . Relay Couplers Released . | . . . . Fabnet Peak Effective % . | . . . . Robots Rewired . | . . . . Allies Hacked . | . . . . Hacks Repelled . | . . . . Allies | -11 -10 -10 -10 -------- Run | Jun Mat Min Sub Total Allies 4 | . . 4 . Largest Group 4 | . . 4 . Highest-Rated Group 71 | . . 71 . Highest-Rated Ally 31 | . . 31 . Total Orders . | . . . . Ally Attacks 6 | . . 6 . Total Damage 64 | . . 64 . Kills 1 | . . 1 . Allies Corrupted . | . . . . Allies Melted . | . . . . Intel | -11 -10 -10 -10 ------- Run | Jun Mat Min Sub Robot Analysis Total 4 | . 4 . . Derelict Logs Recovered 4 | . . 3 1 Drone Launches . | . . . . Drone Recoveries . | . . . . Exploration | -11 -10 -10 -10 ------------- Run | Jun Mat Min Sub Turns Passed 2951 | 76 1048 1162 665 Spaces Moved 1687 | 23 591 684 389 Core 8 | . . . 8 Treads 1444 | . 519 684 241 Legs 95 | 23 72 . . Wheels 140 | . . . 140 Hover . | . . . . Flight . | . . . . Fastest Speed 110 | 120 120 160 110 Average Speed 154 | 120 155 160 147 Slowest Speed 400 | 120 160 160 400 Overloaded Moves . | . . . . Propulsion Burnouts . | . . . . Robots Hopped . | . . . . Cave-ins Triggered . | . . . . Exploration Rate (%) 55 | 3 94 98 25 Regions Visited 3 Branch Regions 2 Pre-discovered Areas 1 | . . . 1 Known Exits Taken . | . . . . Unknown Exits Taken 3 | 1 1 1 . Scrap Searched 1 | . . 1 . Spaces Dug . | . . . . Terrain Destroyed 300 | . 103 96 101 Melee . | . . . . Projectile . | . . . . AOE 300 | . 103 96 101 Terrain Rammed . | . . . . Walls Destroyed . | . . . . Machines Disabled . | . . . . Actions | -11 -10 -10 -10 --------- Run | Jun Mat Min Sub Total 1924 | 56 696 733 439 Wait 96 | 23 44 23 6 Move 1684 | 22 590 683 389 Hop . | . . . . Pick Up 20 | . 14 5 1 Fast Attach 4 | 1 1 1 1 Attach 10 | . 4 . 6 Detach . | . . . . Swap 13 | . 11 1 1 Drop 13 | 2 9 1 1 Fire 81 | 8 23 16 34 Melee . | . . . . Ram . | . . . . Kick . | . . . . Crush 3 | . . 3 . Escape Stasis . | . . . . Rewire . | . . . . Trap . | . . . . Miscellaneous . | . . . . Route ------- -11/Junkyard -10/Materials (discovered 5 exits: [*Mat x3] / [*Min] / [Sub]) -10/Mines (discovered 3 exits: [*Mat x2] / [*Sub]) -10/Subcaves (discovered 1 exit: Rec) History --------- Turn | Location | Event 9 | -11/Junkyard | Discovered new exit (range 3) 77 | -11/Junkyard | Entered Materials 301 | -10/Materials | Build established: Mutant 328 | -10/Materials | Discovered new exit (range 9) 391 | -10/Materials | Discovered new exit (range 12) 398 | -10/Materials | Discovered new exit (range 16) 664 | -10/Materials | Repaired Grenade Launcher 715 | -10/Materials | Discovered new exit (range 15) 826 | -10/Materials | Discovered new exit (range 16) 1125 | -10/Materials | Entered Mines 1180 | -10/Mines | Assisted by bots powering up and referring to "LRC-V3" 1302 | -10/Mines | Received a Mining Laser from a helpful Derelict 1468 | -10/Mines | Learned Materials emergency access door positions 1544 | -10/Mines | Discovered new exit (range 7) 1547 | -10/Mines | Received a Rocket Launcher from a helpful Derelict 1681 | -10/Mines | Assembled infested the area 1686 | -10/Mines | Assisted by a Guerilla fighting off Assembled 1832 | -10/Mines | Discovered new exit (range 7) 2056 | -10/Mines | Discovered new exit (range 8) 2287 | -10/Mines | Entered Subcaves 2288 | -10/Subcaves | Identified exit to Recycling 2307 | -10/Subcaves | Learned location of Storage (-9) 2356 | -10/Subcaves | Shifting Twisted Machinery released Sub. Monowheel 2391 | -10/Subcaves | Shifting Twisted Machinery released Sub. Machine Gun 2736 | -10/Subcaves | Ambushed by Subdweller buried in earth 2767 | -10/Subcaves | Lost 4 parts (1p2n1w) 2936 | -10/Subcaves | Core integrity fell below 50% 2940 | -10/Subcaves | Core integrity fell below 20% 2952 | -10/Subcaves | Destroyed by AQ-6ZI(R) with Subdweller Shrapnel Launcher Last Messages --------------- 02792_ Acquired 31 matter. 02797_ The unstable cave ceiling collapses. 02813_ Acquired Sub. Machine Gun. 02817_ The unstable cave ceiling collapses. 02823_ System corrupted: Energy discharge (-36). 02841_ System corrupted: Matter fused (-9). 02862_ The unstable cave ceiling collapses. 02914_ Acquired 15 matter. 02922_ Acquired 57 matter. 02935_ KN-RAF(R) destroyed. 02937_ Lgt. Ion Engine destroyed. 02937_ Destroyed Lgt. Ion Engine. 02937_ VR-4YO(R) destroyed. 02939_ 6J-PRN(R) destroyed. 02943_ Acquired Sub. Power Source. 02946_ AQ-6ZI(R) affixes Scrap Shield Fragment to Scrap Shield. 02947_ Acquired 17 matter. 02950_ Acquired 36 matter. 02951_ /> SYN:<>EMIV LLFI3EOGE%3=UO6 02952_ Grenade Launcher destroyed. Map ----- +----------------------------------------------------+ | ???????????????????????????## ## ###??? | | ??????????????????????????### ## ###??? | | ??????????????????????????## ### #### ###??? | | ??????????????????????????### ### ### ##??? | | ??????????????????? ??????#### ???## ## ##??? | | ??????????????###? ???????####???## # ##??? | | ??????????????## ##????#####??### ## ##??? | | ?????????????### ##??#######??### ## #####? | | ?????????????"## ###### ###### ### #####? | | ????????????? #" ##### ###### # ####? | | ????????????? ## #### ## ###? | | ????????????? #" #### ## " "###? | | ?????????????## #### # """ " ##? | | ?????????????#### #### "" " ##? | | ?????????????#### ### """ """" ##? | | ?????????????## ## ;#; """"# ## "####? | | ?????????????## #; """############? | | ?????????????## "" ; "###########??? | | ?????????????###""""= ####?????????? | | ??????????????###"&" " ####?????????? | | ???????????????##""" """ ?????????? | | ???????????????###"" "" " #???????? | | ???????????????## # & ##???????? | | ???????????????## ## &! ###???????? | | ???????????????### ## &= ## #####???????? | | ??????????????## ##" &@R ### #####????????? | | ?????????????### #" "& [#### ###??????????? | | ?????????????## ## ##"" " ##??????????? | | ?????????????# ## " """ " ??????????? | | ????????????? ###;" "; ""##### #????????? | | ???????????? ###"" "######## ##????????? | | ????????????? # # ?";"" ###??#### #????????? | | ?????????????? ?? ?? $ ???????### ??????????? | | ????????????????? ??? #???????????????????????? | | ??????????????????????? ##???????????????????????? | | ??????????????????????? #???????????????????????? | | ?????????????????????????????????????????????????? | | ?????????????????????????????????????????????????? | | ?????????????????????????????????????????????????? | | ?????????????????????????????????????????????????? | | ?????????????????????????????????????????????????? | | ?????????????????????????????????????????????????? | | ?????????????????????>???????????????????????????? | | ?????????????????????????????????????????????????? | | ?????????????????????????????????????????????????? | | ?????????????????????????????????????????????????? | | ?????????????????????????????????????????????????? | | ?????????????????????????????????????????????????? | | ?????????????????????????????????????????????????? | | ?????????????????????????????????????????????????? | +----------------------------------------------------+ Best States ------------- Heat Dissipation 25 Energy Generation 15 Energy Capacity 250 Matter Stores 300 Matter Capacity 300 Sight Range 16 Robot Scan Range 14 Terrain Scan Density 10 Evasion (%) 55 Recoil Reduction 2 Item Schematics ----------------- None Robot Schematics ------------------ None Fabricated ------------ Nothing Alien Tech Used ----------------- None Achievements -------------- None Challenges ------------ None Game ------ Seed ArmorLightningBrace Manual? 0 Play Time 00:30:17 Cumulative 70.9 hours Start 2023.08.15 @ 17:08:47 End 2023.08.15 @ 17:40:04 Sessions 1 Manual Loads 0 Difficulty Rogue Special Mode None Game No. 40 Rogue 40 Adventurer 0 Explorer 0 Win Type - Total 0 Types 0/0/0/0/0/0/0/0/0 Lore% 35 Gallery% 35 Achievement% 35 Wizard Run 0 Options --------- ASCII 0 Keyboard 0 Movement Mouse Keybinds 0 Fullscreen 1 Font 16/SmallcapsGlow Map View 82x54 Tactical HUD 1 Map Filters NONE Filters NONE Steam 1 RUN: 8d955c74-d3da-43e7-817a-c06d9991681f